Cogmind - Beta 16.1 @@@ ROGUE MODE // 2026.02.28 @ 14:28:56 Player: AnotherZach Result: Destroyed by GY-LSD(R) with Subdweller Beam Cannon Performance ------------- Evolutions (0) 0 Regions Visited (2) 400 Robots Destroyed (37) 185 Value Destroyed (899) 899 Prototype IDs (0) 0 Alien Tech Used (0) 0 Bonus (0) 0 TOTAL SCORE: 1484 Bonus ------- None Cogmind --------- Core Integrity 0/250 Matter 286/300 Energy 200/200 System Corruption 0% Temperature Cool (9) Movement Rolling (125) Ox3 Location -10/Subcaves Parts ------- > --- POWER (1) -------- Subdweller Power Source > --- PROPULSION (2) --- Spiked Treads Wheel > --- UTILITY (2) ------ Disposable Heat Sink Large Storage Unit > --- WEAPON (2) ------- Subdweller Beam Cannon Subdweller Machine Gun > --- INVENTORY (15) --- Subdweller Power Source Subdweller Power Source Subdweller Monowheel Subdweller Monowheel Disposable Heat Sink Disposable Heat Sink Large Matter Pod (150) Seismic Detector Makeshift Kinetic Plating Scrap Shield Power Bank Battle Rifle Datajack Peak State ------------ > --- POWER ------------ Subdweller Power Source > --- PROPULSION ------- Spiked Treads Spiked Treads > --- UTILITY ---------- Disposable Heat Sink Large Storage Unit > --- WEAPON ----------- Subdweller Beam Cannon Subdweller Machine Gun > --- INVENTORY -------- Subdweller Power Source Wheel Subdweller Monowheel Disposable Heat Sink Disposable Heat Sink Large Matter Pod Seismic Detector Makeshift Kinetic Plating Scrap Shield Power Bank Battle Rifle Datajack [Rating: 16] Favorites ----------- Power Light Ion Engine Engine Light Ion Engine Propulsion Light Treads Treads Light Treads Wheel Wheel Utility Large Storage Unit Device Disposable Heat Sink Storage Large Storage Unit Protection Light Armor Plating Weapon Medium Laser Energy Gun Medium Laser Energy Cannon Subdweller Beam Cannon Ballistic Gun Light Assault Rifle Ballistic Cannon Battle Cannon Launcher Grenade Launcher Special Weapon Flamer Build | -11 -10 -10 ------- Run | Yrd Mat Sub Slots Evolved . | . . . Power . | . . . Propulsion . | . . . Utility . | . . . Weapon . | . . . Parts Attached 26 | 7 2 17 Power 3 | 1 . 2 Engine 3 | 1 . 2 Core . | . . . Reactor . | . . . Propulsion 8 | 2 . 6 Treads 4 | 2 . 2 Leg . | . . . Wheel 4 | . . 4 Hover . | . . . Flight . | . . . Utility 5 | 2 1 2 Device 2 | 1 . 1 Storage 2 | 1 1 . Processor . | . . . Hackware . | . . . Protection 1 | . . 1 Artifact . | . . . Weapon 10 | 2 1 7 Energy Gun 1 | 1 . . Energy Cannon 2 | . . 2 Ballistic Gun 4 | 1 . 3 Ballistic Cannon 1 | . . 1 Launcher 1 | . 1 . Special Weapon 1 | . . 1 Impact Weapon . | . . . Slashing Weapon . | . . . Piercing Weapon . | . . . Special Melee Weapon . | . . . Unidentified Prototypes . | . . . Parts Lost 13 | . . 13 Power 1 | . . 1 Propulsion 5 | . . 5 Utility 1 | . . 1 Weapon 6 | . . 6 Highest Loss Streak 6 | . . 6 To Critical Strikes . | . . . Average Backups 9 | 3 8 10 Power . | . . . Propulsion 2 | 3 3 2 Utility 5 | . 3 6 Weapon 1 | . . 1 Tool/Special . | . . . Unused Backups 18 | . 4 14 Power 2 | . . 2 Propulsion 5 | . 3 2 Utility 10 | . 1 9 Weapon . | . . . Tool/Special 1 | . . 1 Average Slot Usage (%) 92 | . 100 90 Engine 8 | . 14 7 Treads 20 | . 28 19 Wheel 7 | . . 8 Device 10 | . 14 10 Storage 14 | . 14 14 Protection 2 | . . 3 Energy Gun 7 | . 13 5 Energy Cannon 2 | . . 3 Ballistic Gun 13 | . 12 13 Ballistic Cannon 2 | . . 3 Peak Build Rating 16 | 8 8 16 Average Rating 9 | 6 7 9 On Entrance 5 | . 8 8 Avg Prop Armor Cover (%) 6 | . . 6 Naked Turns . | . . . Heaviest Build 38 | 12 27 38 Greatest Support 40 | 40 40 40 Greatest Overweight (x) 2 | . . 2 Average Overweight (x) . | . . . Largest Inventory Capacity 15 | 8 15 15 Average Capacity 14 | 7 11 15 Most Carried 15 | 8 10 15 Average Carried 10 | 3 8 10 Final Capacity 15 | 8 15 15 Final Carried 14 | 8 10 14 Class Distribution -------------------- 93% | Mutant 6% | Scavenger-Mutant Dominant Class ---------------- Mutant | -10/Materials Mutant | -10/Subcaves Resources | -11 -10 -10 ----------- Run | Yrd Mat Sub Matter Collected 963 | 280 160 523 Remotely . | . . . Salvage Created 1081 | 149 348 584 Parts 78 | 13 28 37 Haulers Intercepted . | . . . Recyclers Shooed 1 | . 1 . Parts Field Recycled . | . . . Retrieved Matter . | . . . Parts Self-Destructed 16 | . . 16 Prevented . | . . . Parts Restored . | . . . Kills | -11 -10 -10 ------- Run | Yrd Mat Sub Combat Hostiles Destroyed 29 | . 13 16 Guns 16 | . 9 7 Cannons 7 | . . 7 AOE 5 | . 4 1 Classes Destroyed 8 | 3 3 2 Worker 3 | 2 1 . Tunneler 3 | 3 . . Recycler 1 | 1 . . Watcher 1 | . 1 . Swarmer 10 | . 6 4 Grunt 7 | . 7 . Sentry 1 | . . 1 Subdweller 11 | . . 11 Best Kill Streak 5 | 2 5 3 Combat Bots Only 4 | . 4 3 Max Kills in Single Turn 2 | 1 2 1 Gunslinging . | . . . Exploded 2 | . 2 1 Melee . | . . . Uniques/NPCs Destroyed . | . . . Combat | -11 -10 -10 -------- Run | Yrd Mat Sub Hostile Shots Fired 218 | . 50 168 Missed 72 | . 13 59 Hits 146 | . 37 109 Projectile 146 | . 37 109 Critical Strikes 2 | . . 2 Damage Taken 1831 | . 420 1411 Core 253 | . 75 178 Absorbed by Shields . | . . . Core Remaining (%) 100 | 100 . . Volleys Fired 143 | 10 44 89 Largest 2 | 2 2 2 Hottest 150 | 70 80 150 Shots Fired 245 | 17 86 142 Gun 167 | 17 80 70 Cannon 70 | . . 70 Launcher 7 | . 6 1 Special 1 | . . 1 Kinetic 127 | 10 38 79 Thermal 111 | 7 42 62 Explosive 7 | . 6 1 Electromagnetic . | . . . Robot Hit Streak 11 | 5 11 10 Robot Miss Streak 5 | 1 4 5 Penetration Max . | . . . Secondary Targets 3 | . 2 1 Max Gunslinging Chain 1 | . 1 1 Shots Hit Robots 130 | 9 51 70 Core Hits 58 | 8 28 22 Critical Kills 4 | 1 1 2 Critical Parts Destroyed . | . . . Critical Strikes 10 | 1 7 2 Burn 6 | . 6 . Meltdown 1 | . . 1 Destroy 3 | 1 1 1 Melee Attacks . | . . . Impact . | . . . Slashing . | . . . Piercing . | . . . Sneak Attacks . | . . . Combat Hostiles . | . . . Follow-up Attacks . | . . . Damage Inflicted 2268 | 102 737 1429 Guns 1250 | 102 534 614 Cannons 716 | . . 716 Explosions 292 | . 203 89 Melee . | . . . Ramming . | . . . Kinetic 896 | 27 161 708 Thermal 1099 | 75 392 632 Explosive 262 | . 173 89 Electromagnetic 11 | . 11 . Impact . | . . . Slashing . | . . . Piercing . | . . . Highest Corruption . | . . . Average Corruption . | . . . Corruption Purged . | . . . Corruption Blocked . | . . . Overload Shots . | . . . Overflow Damage 2 | . 2 . Projectiles . | . . . Explosions 2 | . 2 . Melee . | . . . Knockbacks 3 | . . 3 Impact . | . . . Kinetic 3 | . . 3 Secondary . | . . . Self-Inflicted Damage 81 | . 81 . Shots 3 | . 3 . Rammed . | . . . Targets Rammed . | . . . Kicked . | . . . Crushed . | . . . Highest Temperature 255 | 60 148 255 Average Temperature 45 | 25 48 39 Received Heat Transfer 786 | . 96 690 Siege Activations . | . . . Martial Activations . | . . . Shielding Activations . | . . . Robots Disrupted . | . . . Combat Hostiles . | . . . Robots Corrupted . | . . . Combat Hostiles . | . . . Parts Fried . | . . . Impact Corruptions . | . . . Robots Melted 1 | . . 1 Combat Hostiles 1 | . . 1 Parts Melted 4 | . 3 1 Heat Transferred 2905 | 222 1604 1079 Parts Sabotaged . | . . . Parts Stolen . | . . . Parts Stripped . | . . . Power Chain Reactions 1 | . 1 . Alert | -11 -10 -10 ------- Run | Yrd Mat Sub Maximum Alert Level 1 | . 1 . Low Security (%) 85 | 100 80 . Level 1 14 | . 19 . Level 2 . | . . . Level 3 . | . . . Level 4 . | . . . Level 5 . | . . . High Security . | . . . Max Security . | . . . Peak Influence 245 | 10 245 . Initial . | . . . Average 96 | 1 129 . Influence Increases 762 | 30 467 265 Destroy 0b10 Robot/C 360 | . 260 100 Destroy 0b10 Robot/NC 40 | 30 10 . Destroy Leader 52 | . 52 . Successful Hack 14 | . 14 . Select Force Hacks 30 | . 30 . Disable Machine 45 | . 45 . Destroy Structure 41 | . 41 . Lose Combat Pursuer 180 | . 15 165 Influence Decreases 762 | 30 262 470 Entered New Map 99 | . . 99 Time Decay 573 | 30 262 281 Lost Part 90 | . . 90 Squads Dispatched 3 | . 3 . Investigation 2 | . 2 . Extermination . | . . . Reinforcement 1 | . 1 . Assault . | . . . Garrison . | . . . Intercept . | . . . Searches Triggered . | . . . Construction Impeded . | . . . Haulers Reinforced . | . . . Active Scanning Responses . | . . . Cargo Convoy Interrupts . | . . . Stealth | -11 -10 -10 --------- Run | Yrd Mat Sub Distress Signals . | . . . Communications Jammed . | . . . Distress Signals . | . . . Times Spotted 41 | . 19 22 Peak Tracking Total 5 | . 4 5 Tactical Retreats 5 | . 1 4 Traps | -11 -10 -10 ------- Run | Yrd Mat Sub Traps Triggered . | . . . Indirectly . | . . . Trap Hack Attempts . | . . . Triggered . | . . . Disarmed . | . . . Reprogrammed . | . . . Reused 1 | . . 1 Traps Extracted . | . . . Installed 1 | . . 1 Triggered . | . . . Most Traps Carried 1 | . . 1 Machines | -11 -10 -10 ---------- Run | Yrd Mat Sub Machines Disabled 4 | . 3 1 Max in Single Turn 2 | . 2 1 Machines Repaired . | . . . Machines Dismantled . | . . . Machines Sabotaged . | . . . Overloaded Fab Kills . | . . . Hacking | -11 -10 -10 --------- Run | Yrd Mat Sub Machines Accessed 7 | . 5 2 Terminals 3 | . 3 . Fabricators . | . . . Repair Stations . | . . . Recycling Units 2 | . 2 . Scanalyzers . | . . . Garrison Access . | . . . Total Hacks 17 | . 15 2 Successful 5 | . 3 2 Failed 12 | . 12 . Catastrophic . | . . . Database Lockouts . | . . . Manual 11 | . 11 . Terminals 9 | . 9 . Fabricators . | . . . Repair Stations . | . . . Recycling Units 6 | . 6 . Scanalyzers . | . . . Garrison Access . | . . . Terminal Hacks 3 | . 1 2 Robot Schematic 1 | . 1 . Open Door 1 | . . 1 Release Object 1 | . . 1 Fabricator Hacks . | . . . Repair Station Hacks . | . . . Recycling Unit Hacks . | . . . Scanalyzer . | . . . Garrison Access Hacks . | . . . Unauthorized Hacks 2 | . 2 . Terminals 1 | . 1 . Disrupt 1 | . 1 . Fabricators . | . . . Repair Stations . | . . . Recycling Units 1 | . 1 . Tunnel 1 | . 1 . Scanalyzers . | . . . Garrison Access . | . . . Data Cores Recovered . | . . . Used . | . . . Hacking Detections 5 | . 5 . Full Trace Events 2 | . 2 . Feedback Events . | . . . Feedback Blocked . | . . . Robot Schematics Acquired 1 | . 1 . Robots Built . | . . . Authchips . | . . . Time . | . . . Total Robot Build Rating . | . . . Part Schematics Acquired . | . . . Parts Built . | . . . Authchips . | . . . Time . | . . . Total Part Build Rating . | . . . Part Studies Acquired . | . . . Parts Repaired . | . . . Time . | . . . Parts Recycled . | . . . Recycled Matter . | . . . Retrieved Matter . | . . . Retrieved Components . | . . . Parts Scanalyzed . | . . . Part Schematics Acquired . | . . . Parts Damaged . | . . . Bothacking | -11 -10 -10 ------------ Run | Yrd Mat Sub Used RIF Installer . | . . . Robots Hacked . | . . . Non-combat . | . . . Combat . | . . . Robot Hacks Applied . | . . . Relay Couplers Released . | . . . Fabnet Peak Effective % . | . . . Robots Rewired . | . . . Allies Hacked . | . . . Hacks Repelled . | . . . Allies | -11 -10 -10 -------- Run | Yrd Mat Sub Total Allies . | . . . Largest Group . | . . . Highest-Rated Group . | . . . Highest-Rated Ally . | . . . Total Orders . | . . . Ally Attacks . | . . . Total Damage . | . . . Kills . | . . . Allies Corrupted . | . . . Allies Melted . | . . . Intel | -11 -10 -10 ------- Run | Yrd Mat Sub Active Infowar (turns) 1358 | 148 654 556 Seismic 1358 | 148 654 556 Robot Analysis Total . | . . . Derelict Logs Recovered 1 | . . 1 Drone Launches . | . . . Drone Recoveries . | . . . Exploration | -11 -10 -10 ------------- Run | Yrd Mat Sub Turns Passed 4280 | 229 654 3397 Spaces Moved 2122 | 120 315 1687 Core 5 | 5 . . Treads 1710 | 115 315 1280 Legs . | . . . Wheels 407 | . . 407 Hover . | . . . Flight . | . . . Fastest Speed 50 | 50 160 95 Average Speed 166 | 155 160 168 Slowest Speed 260 | 160 160 260 Overloaded Moves . | . . . Propulsion Burnouts . | . . . Robots Hopped . | . . . Potential Cave-ins 4 | . . 4 Cave-ins Triggered . | . . . Exploration Rate (%) 49 | 6 72 71 Regions Visited 2 Branch Regions 1 Pre-discovered Areas 2 | . 1 1 Known Exits Taken . | . . . Unknown Exits Taken 2 | 1 1 . Scrap Searched 6 | . . 6 Spaces Dug 24 | . 8 16 Terrain Destroyed 64 | . 38 26 Melee . | . . . Projectile 18 | . . 18 AOE 46 | . 38 8 Terrain Rammed . | . . . Walls Destroyed . | . . . Machines Disabled . | . . . Actions | -11 -10 -10 --------- Run | Yrd Mat Sub Total 2627 | 144 386 2097 Wait 279 | . 10 269 Move 2120 | 119 314 1687 Hop . | . . . Pick Up 35 | 8 6 21 Fast Attach 10 | 7 . 3 Attach 12 | . . 12 Detach . | . . . Swap 13 | . 7 6 Drop 14 | . 5 9 Fire 143 | 10 44 89 Melee . | . . . Ram . | . . . Kick . | . . . Crush . | . . . Escape Stasis . | . . . Rewire . | . . . Trap 1 | . . 1 Miscellaneous . | . . . Route ------- -11/Scrapyard -10/Materials (discovered 5 exits: [*Mat x2] / [*Min x2] / *Sub) -10/Subcaves (discovered 1 exit: [*Rec]) History --------- Turn | Location | Event 27 | -11/Scrapyard | Discovered new exit (range 16) 230 | -11/Scrapyard | Entered Materials 303 | -10/Materials | Build established: Mutant 415 | -10/Materials | Discovered new exit (range 15) 567 | -10/Materials | Discovered new exit (range 11) 799 | -10/Materials | Discovered new exit (range 16) 807 | -10/Materials | Discovered new exit (range 5) 876 | -10/Materials | Discovered new exit (range 6) 884 | -10/Materials | Entered Subcaves 885 | -10/Subcaves | Approached by a straggling Scientist 1819 | -10/Subcaves | Learned location of Zion (-7) 1819 | -10/Subcaves | Met a Zionite searching for "candidates" 2236 | -10/Subcaves | Learned Materials interactive machine intel 2303 | -10/Subcaves | Discovered new exit (range 10) 2304 | -10/Subcaves | Core integrity fell below 50% 2342 | -10/Subcaves | Lost 6 parts (1p2n1u2w) 2621 | -10/Subcaves | Disturbed a concealed Subdweller 3026 | -10/Subcaves | Shifting Twisted Machinery released Mak. Kinetic Plating 3042 | -10/Subcaves | Shifting Twisted Machinery released Flamer 3940 | -10/Subcaves | A swath of the cavern ceiling suddenly collapsed 3988 | -10/Subcaves | Disturbed a concealed Subdweller 4138 | -10/Subcaves | Shifting Twisted Machinery released Barrage Gun 4138 | -10/Subcaves | Shifting Twisted Machinery released Flamer 4144 | -10/Subcaves | A Subdweller sparked back to life 4144 | -10/Subcaves | A Subdweller sparked back to life 4144 | -10/Subcaves | A Subdweller sparked back to life 4190 | -10/Subcaves | Found Prototype Device 4265 | -10/Subcaves | Core integrity fell below 20% 4281 | -10/Subcaves | Destroyed by GY-LSD(R) with Subdweller Beam Cannon Last Messages --------------- to move. 04144_ T4-ZRF(R) creaks and sparks as it begins to move. 04144_ EL-TSM(R) creaks and sparks as it begins to move. 04159_ Battle Cannon destroyed. 04162_ Dropped Piercing Trap. 04163_ Installed Piercing Trap. 04176_ T4-ZRF(R) suffers critical hit (Meltdown). 04176_ Disposable Heat Sink melted. 04182_ EL-TSM(R) destroyed. 04185_ FW-HI7(R) destroyed. 04190_ Acquired Prototype Device. 04191_ Acquired 49 matter. 04194_ Acquired Sub. Monowheel. 04197_ Acquired 6 matter. 04201_ Acquired 10 matter. 04264_ Critical hit (Meltdown: +300). 04273_ Spk. Treads destroyed. Map ----- +----------------------------------------------------+ | ?????????????????????????????????????????????????? | | ?????????????????????????????????????????????????? | | ?????????????????????????????????????????????????? | | ?????????????????????????????????????????????????? | | ?????????????????????????????????????????????????? | | ?????????????????????????????????????????????????? | | ?????????????????????????????????????????????????? | | ?????????????????????????????????????????????????? | | ?????????????????????????????????????????????????? | | ?????????????????????????#???????????????????????? | | ####?????#####??????????# ??????????????????????? | | ## ##????# ##????#"### ??????????????????????? | | ## #???? #### "" #??????????????????????? | | ###??? #"""&< ##?????????????????????? | | ### #?### ### "" "" "????????????????????? | | #?#&*#?#"""# # ] """"< "???##????????????????? | | ### ### """" ""#"""" " ??" ?##### ?????????? | | &= # # "" """##?#" ??? ## " ?????????? | | %&%& "#" #?#" #??# " ???????? | | = ####""|#?? ### " #????????? | | ### ##"#" #??# ## " ????????? | | ###?## """[ ##??# ## """?????????? | | ###???## ## #??# # R "" ?????????? | | ????### ### #### R## "" ?????????? | | ???## ##?## ##??? """" ??????????? | | ???# ##?# # @##??????" "???????????? | | ???# ### ### ""#????????? "#??????????? | | ???# #; ####???????????#??????????? | | ???# ######?????????????????????????? | | ## #??????????????????????????????? | | #??????????????????????????????? | | ## ##?????????????????????????????? | | ### #### #?????????????????????????????? | | ## ## #### ####??????????????????????????? | | ?# ## #??????????????????????????? | | ?# #??????????????????????????? | | ## ##??????????????????????????? | | # ######???????????????????????????? | | ## ##????????????????????????????????? | | ?# ## #?????????????????????????????????? | | ###??# ######?????????????????????????????????? | | #????# ##?????????????????????????????????????? | | ###### ##????????????????????????????????????? | | ## ##???????????????????????????????????? | | #???????????????????????????????????? | | #???????????????????????????????????? | | ### #???????????????????????????????????? | | #?####???????????????????????????????????? | | ##????????????????????????????????????????? | | #####?????????????????????????????????????????? | +----------------------------------------------------+ Best States ------------- Heat Dissipation 25 Coolant Potential 50 Energy Generation 15 Energy Capacity 200 Matter Stores 300 Matter Capacity 300 Sight Range 16 Terrain Scan Density 10 Armor Coverage 150 Evasion (%) 41 Recoil Reduction 2 Item Schematics ----------------- None Robot Schematics ------------------ M-13 Machinist | -10/Materials | Hacked Fabricated ------------ Nothing Repaired ---------- Nothing Studied --------- None Alien Tech Used ----------------- None Achievements -------------- None Challenges ------------ None Game ------ Seed StructuralAngularNullifier Manual? 0 Play Time 00:18:51 Cumulative 774.2 hours Start 2026.02.28 @ 14:10:28 End 2026.02.28 @ 14:28:56 Sessions 1 Manual Loads 0 Difficulty Rogue Special Mode None Game No. 193 Rogue 55 Adventurer 138 Explorer 0 Win Type - Total 11 Types 7/0/1/2/0/0/0/0/1/0 Lore% 79 Gallery% 75 Achievement% 56 Wizard Run 0 Options --------- Layout 2 ASCII 0 Keyboard 0 Movement Mouse Keybinds 0 Fullscreen 1 Font 24/Smallcaps Map View 50x49 Zoom Use 1% Tactical HUD 1 Map Filters NONE Filters NONE Steam 1 RUN: ebd183ef-8cf7-49a7-84e0-10458c2f7d4b